bitfinex/quotes_BTCUSD_20250730
["timestamp","ask_amount","ask_price","bid_price","bid_amount"]
[1753888128308,6.5246784,118610.0,118600.0,0.00104838]
[1753888128520,6.9676363,118610.0,118600.0,0.00104838]
[1753888128727,6.65637893,118610.0,118600.0,0.00104838]
[1753888128935,7.01485988,118610.0,118600.0,0.00104838]
[1753888129157,6.65637893,118610.0,118600.0,0.00104838]
[1753888129386,7.03172143,118610.0,118600.0,0.00104838]
[1753888129601,6.61673486,118610.0,118600.0,0.00104838]
[1753888129832,6.46439481,118610.0,118600.0,0.00104838]
[1753888130055,6.4823729,118610.0,118600.0,0.00104838]
[1753888130473,6.51273529,118610.0,118600.0,0.00104838]
[1753888130908,6.52116564,118610.0,118600.0,0.00104838]
[1753888131593,6.89650793,118610.0,118600.0,0.00104838]
[1753888131814,1.85802034,118610.0,118600.0,0.00104838]
[1753888132024,1.84852322,118610.0,118600.0,0.00104838]
[1753888132255,6.8653847,118610.0,118600.0,0.00104838]
[1753888132461,7.04973138,118610.0,118600.0,0.00104838]
[1753888132679,0.34,118570.0,118560.0,0.003]
[1753888132890,5.65411138,118570.0,118560.0,0.02848409]
[1753888133280,5.77985138,118570.0,118560.0,0.02848409]
[1753888133975,5.77985138,118570.0,118560.0,0.03248409]
[1753888133976,5.78084419,118570.0,118560.0,0.03248409]
[1753888134390,0.0634,118560.0,118540.0,0.46166434]
[1753888134596,0.13468,118550.0,118540.0,0.39621668]
[1753888134804,0.14256559,118550.0,118540.0,0.40149668]
[1753888135222,0.13468,118550.0,118540.0,0.40149668]
[1753888135645,0.13468,118550.0,118540.0,0.05144643]
[1753888135856,0.13468,118550.0,118540.0,0.35533025]
[1753888136081,0.49086142,118570.0,118540.0,0.35533025]
[1753888136298,0.1346,118560.0,118540.0,0.00211]
[1753888136513,0.34448412,118570.0,118550.0,0.47531025]
[1753888136721,0.01136685,118570.0,118560.0,0.47731025]
[1753888136931,0.14604685,118570.0,118560.0,0.5600463]
[1753888137132,0.13816412,118570.0,118560.0,0.5590463]
[1753888137390,0.00348412,118570.0,118560.0,0.5590463]
[1753888137607,0.00348412,118570.0,118560.0,0.5580463]
[1753888138295,0.00548412,118570.0,118560.0,0.5650463]
[1753888140553,0.00548412,118570.0,118560.0,0.08973605]
[1753888140554,0.38575687,118570.0,118560.0,0.08973605]
[1753888140761,0.47023417,118570.0,118560.0,0.00910863]
[1753888141183,0.81023417,118570.0,118560.0,0.00910863]
[1753888141384,0.81023417,118570.0,118550.0,0.44141888]
[1753888141587,0.81023417,118570.0,118560.0,0.35415888]
[1753888141792,0.63230417,118570.0,118560.0,0.399813]
[1753888142015,0.47992412,118570.0,118560.0,0.56850395]
[1753888142233,0.47992412,118570.0,118560.0,0.399813]
[1753888142397,0.48004412,118570.0,118560.0,0.399813]
[1753888142628,0.47904412,118570.0,118560.0,0.399813]
[1753888143107,0.59340412,118570.0,118560.0,0.399813]
[1753888143410,0.62763412,118570.0,118560.0,0.396603]
[1753888143898,0.65933412,118570.0,118560.0,0.04455275]
[1753888144141,0.65933412,118570.0,118560.0,0.04666138]
[1753888144385,0.66033412,118570.0,118560.0,0.04655275]
[1753888144653,0.74794142,118570.0,118560.0,0.002]
[1753888144845,0.74794142,118570.0,118560.0,0.00410863]
[1753888145326,0.75582933,118570.0,118560.0,0.00410863]
[1753888146490,0.7558317,118570.0,118560.0,0.00410863]
[1753888146943,0.7527017,118570.0,118560.0,0.00410863]
[1753888147184,0.7527017,118570.0,118560.0,0.00610863]
[1753888147681,0.6362117,118570.0,118560.0,0.35936888]
[1753888147925,0.6362117,118570.0,118560.0,0.40540214]
[1753888148134,0.3533744,118570.0,118560.0,0.52745214]
[1753888148337,0.4877744,118570.0,118560.0,0.52745214]
[1753888148596,0.48777698,118570.0,118560.0,0.40540214]
[1753888148806,0.47988412,118570.0,118560.0,0.40540214]
[1753888149263,0.62524412,118570.0,118560.0,0.36240214]
[1753888149465,0.34,118560.0,118550.0,0.35005025]
[1753888149692,0.34,118560.0,118550.0,0.35205025]
[1753888150629,0.001,118560.0,118550.0,0.47610025]
[1753888151256,0.341,118560.0,118550.0,0.47610025]
[1753888151455,0.342,118560.0,118550.0,0.47910025]
[1753888151659,0.52119,118560.0,118550.0,0.41872128]
[1753888151860,0.52432,118560.0,118550.0,0.41672128]
[1753888152177,0.52432,118560.0,118550.0,0.06667103]
[1753888152351,0.52432,118560.0,118550.0,0.41883009]
[1753888152553,0.52432,118560.0,118550.0,0.06667103]
[1753888152781,0.52432,118560.0,118550.0,0.005]
[1753888152993,0.52432,118560.0,118550.0,0.00710881]
[1753888153581,0.52432,118560.0,118550.0,0.005]
[1753888154416,0.53370439,118560.0,118550.0,0.005]
[1753888154717,0.53370439,118560.0,118550.0,0.00710881]
[1753888154915,0.53370439,118560.0,118550.0,0.005]
[1753888155390,0.53370439,118560.0,118550.0,0.00710881]
[1753888155807,0.53057439,118560.0,118550.0,0.35915906]
[1753888156015,0.41621439,118560.0,118550.0,0.40549216]
[1753888156810,0.53057439,118560.0,118550.0,0.40549216]
[1753888157222,0.41408439,118560.0,118550.0,0.53075216]
[1753888157572,0.35138439,118560.0,118550.0,0.53075216]
[1753888157780,0.01138439,118560.0,118550.0,1.04950759]
[1753888158005,0.14578439,118560.0,118550.0,0.88080241]
[1753888158212,0.14578439,118560.0,118550.0,0.83385734]
[1753888158213,0.01138439,118560.0,118550.0,0.83385734]
[1753888158782,0.01138439,118560.0,118550.0,0.66515216]
[1753888158987,0.01138439,118560.0,118550.0,0.31510191]
[1753888159185,0.01138439,118560.0,118550.0,0.66515216]
[1753888159905,0.01138439,118560.0,118550.0,0.31510191]
[1753888160100,0.01138439,118560.0,118550.0,0.66515216]
[1753888160773,0.01138439,118560.0,118550.0,0.53075216]
[1753888160988,0.01138439,118560.0,118550.0,0.66515216]
[1753888161959,0.01138439,118560.0,118550.0,0.83385734]
[1753888162172,0.01138439,118560.0,118550.0,0.66515216]
[1753888163600,0.01138439,118560.0,118550.0,0.83385734]
[1753888163878,0.01138439,118560.0,118550.0,0.66515216]
[1753888164337,0.01138439,118560.0,118550.0,0.83385734]
[1753888164560,0.01138439,118560.0,118550.0,0.66515216]
[1753888165518,0.01138439,118560.0,118550.0,0.83385734]
[1753888165732,0.01138439,118560.0,118550.0,1.18390759]
[1753888166678,0.01138439,118560.0,118550.0,1.01520241]
[1753888167663,0.01138439,118560.0,118550.0,0.66515216]
[1753888171519,0.01138439,118560.0,118550.0,0.66511216]
[1753888171896,0.01138439,118560.0,118550.0,0.83381734]
[1753888172104,0.01138439,118560.0,118550.0,1.1923027]
[1753888172105,0.002,118560.0,118550.0,1.1923027]
[1753888172314,0.002,118560.0,118550.0,1.19230277]
[1753888172964,0.002,118560.0,118550.0,1.20073788]
[1753888173160,0.002,118560.0,118550.0,1.18386759]
[1753888173357,0.002,118560.0,118550.0,0.88080241]
[1753888173563,0.002,118560.0,118550.0,0.66511216]
[1753888175215,0.002,118560.0,118550.0,0.83381734]
[1753888175624,0.002,118560.0,118550.0,0.66511216]
[1753888176291,0.002,118560.0,118550.0,0.83381734]
[1753888176496,0.002,118560.0,118550.0,0.85912225]
[1753888176700,0.002,118560.0,118550.0,0.84225252]
[1753888177164,0.002,118560.0,118550.0,0.83381734]
[1753888177375,0.002,118560.0,118550.0,0.84225259]
[1753888177583,0.002,118560.0,118550.0,0.69945734]
[1753888177793,0.002,118560.0,118550.0,0.83381734]
[1753888178469,0.002,118560.0,118550.0,0.69945734]
[1753888178654,0.002,118560.0,118550.0,0.83381734]
[1753888179576,0.002,118560.0,118550.0,0.84225259]
[1753888179753,0.002,118560.0,118550.0,0.83381734]
[1753888180164,0.002,118560.0,118550.0,0.84225259]
[1753888180611,0.002,118560.0,118550.0,0.85068777]
[1753888180822,0.002,118560.0,118550.0,0.50063752]
[1753888180962,0.002,118560.0,118550.0,1.21018604]
[1753888181374,0.002,118560.0,118550.0,1.20175079]
[1753888182186,0.002,118560.0,118550.0,1.21018604]
[1753888182382,0.18715,118560.0,118550.0,0.18780191]
[1753888182589,0.19033,118560.0,118550.0,0.41243376]
[1753888182786,0.19033,118560.0,118550.0,0.18776191]
[1753888182998,0.19033,118560.0,118550.0,0.49831185]
[1753888183199,0.065,118560.0,118550.0,0.50351185]
[1753888183401,0.002,118560.0,118550.0,1.15159888]
[1753888183612,0.002,118560.0,118550.0,1.16003406]
[1753888184024,0.002,118560.0,118550.0,1.15159888]
[1753888184231,0.002,118560.0,118550.0,1.23607618]
[1753888184454,0.002,118560.0,118550.0,1.24451143]
[1753888185690,0.002,118560.0,118550.0,1.25294661]
[1753888185863,0.032,118560.0,118550.0,1.24451143]
[1753888186525,0.032,118560.0,118550.0,1.23607618]
[1753888187289,0.002,118560.0,118550.0,1.3542935]
[1753888187506,0.002,118560.0,118550.0,0.65853645]
[1753888187727,0.18765,118560.0,118550.0,0.005]
[1753888187943,6.10861915,118560.0,118550.0,0.005]
[1753888188126,6.25861915,118560.0,118550.0,0.005]
[1753888188391,5.8996273,118560.0,118550.0,0.005]
[1753888188614,5.8996273,118560.0,118550.0,0.36399185]
[1753888188615,0.7653073,118560.0,118550.0,0.36399185]
[1753888188842,0.6153073,118560.0,118550.0,0.40039104]
[1753888189075,0.66515,118560.0,118550.0,0.39211238]
[1753888189317,0.66515,118560.0,118550.0,0.04139919]
[1753888189544,0.66515,118560.0,118550.0,0.043508]
[1753888191339,0.4055,118560.0,118550.0,0.39629119]
[1753888191576,0.19982,118560.0,118550.0,0.51770238]
[1753888192038,0.0655,118560.0,118550.0,0.51770238]
[1753888192473,0.18765,118560.0,118550.0,0.39211238]
[1753888192682,0.19083,118560.0,118550.0,0.39211238]
[1753888193485,0.18765,118560.0,118550.0,0.39418238]
[1753888194776,0.18765,118560.0,118550.0,0.56288756]
[1753888194999,0.18765,118560.0,118550.0,0.39418238]
[1753888195354,0.32197,118560.0,118550.0,0.39418238]
[1753888195553,0.32197,118560.0,118550.0,0.39211238]
[1753888195770,0.32507,118560.0,118550.0,0.39211238]
[1753888196228,0.32507,118560.0,118550.0,0.39419238]
[1753888196409,0.32507,118560.0,118550.0,0.39211238]
[1753888196597,0.32197,118560.0,118550.0,0.39419238]
[1753888196796,0.19982,118560.0,118550.0,0.52067238]
[1753888197386,0.3244,118560.0,118550.0,0.39419238]
[1753888198882,0.19982,118560.0,118550.0,0.68937756]
[1753888199503,0.19982,118560.0,118550.0,0.52067238]
[1753888199730,0.19982,118560.0,118550.0,0.51761238]
[1753888199936,0.3244,118560.0,118550.0,0.39419238]
[1753888200163,0.19008,118560.0,118550.0,0.04347919]
[1753888200416,0.39532275,118560.0,118550.0,0.005]
[1753888200633,0.81980005,118560.0,118550.0,0.005]
[1753888201897,0.84946348,118560.0,118550.0,0.005]
[1753888203050,0.84946165,118560.0,118550.0,0.005]
[1753888203887,0.84945734,118560.0,118550.0,0.005]
[1753888204098,0.84351788,118560.0,118550.0,0.005]
[1753888204776,0.84154123,118560.0,118550.0,0.005]
[1753888204999,0.83363506,118560.0,118550.0,0.005]
[1753888205216,5.83363506,118560.0,118550.0,0.005]
[1753888205445,5.82572934,118560.0,118550.0,0.005]
[1753888205660,5.81980005,118560.0,118550.0,0.005]
[1753888206117,5.7519373,118560.0,118550.0,0.005]
[1753888206733,5.75786634,118560.0,118550.0,0.005]
[1753888207174,5.90786634,118560.0,118550.0,0.005]
[1753888207436,5.9019373,118560.0,118550.0,0.005]
[1753888207669,5.9315821,118560.0,118550.0,0.005]
[1753888208985,5.93157523,118560.0,118550.0,0.005]
[1753888209545,5.9019373,118560.0,118550.0,0.005]
[1753888210006,0.9019373,118560.0,118550.0,0.00710881]
[1753888211164,0.9019373,118560.0,118550.0,0.36628621]
[1753888211412,0.9019373,118560.0,118550.0,0.40080602]
[1753888211638,5.9236623,118560.0,118550.0,0.04162862]
[1753888211870,5.9236623,118560.0,118550.0,0.00710881]
[1753888212528,5.9177373,118560.0,118550.0,0.00710881]
[1753888213245,5.9177373,118560.0,118550.0,0.36628621]
[1753888213510,0.9019373,118560.0,118550.0,0.3641774]
[1753888214269,0.66436,118560.0,118550.0,0.3662574]
[1753888214546,0.4055,118560.0,118550.0,0.54654107]
[1753888214803,0.53974,118560.0,118550.0,0.54654107]
[1753888215334,0.4055,118560.0,118550.0,0.71524625]
[1753888215603,0.342,118560.0,118550.0,0.71524625]
[1753888215858,0.002,118560.0,118550.0,0.71524625]
[1753888216121,0.13624,118560.0,118550.0,1.0828589]
[1753888216422,0.002,118560.0,118550.0,1.10816423]
[1753888217252,0.002,118560.0,118550.0,1.0828589]
[1753888217464,0.002,118560.0,118550.0,1.07442365]
[1753888217754,0.002,118560.0,118550.0,0.71524625]
[1753888218007,0.002,118560.0,118550.0,0.68078107]
[1753888218748,0.0347,118560.0,118550.0,0.84948625]
[1753888219022,0.002,118560.0,118550.0,1.25896905]
[1753888219528,0.002,118560.0,118550.0,1.35188111]
[1753888220294,0.002,118560.0,118550.0,1.34344635]
[1753888220552,0.002,118560.0,118550.0,1.35188111]
[1753888220812,0.001,118560.0,118550.0,1.34988111]
[1753888221072,0.001,118560.0,118550.0,1.35831594]
[1753888221300,0.052,118560.0,118550.0,1.35931594]
[1753888221792,0.051,118560.0,118550.0,1.35631594]
[1753888222261,0.052,118560.0,118550.0,1.36031594]
[1753888226179,0.052,118560.0,118550.0,1.35188111]
[1753888227714,0.052,118560.0,118550.0,1.69188111]
[1753888228552,0.052,118560.0,118550.0,1.73433013]
[1753888232461,0.00928822,118580.0,118550.0,1.73433013]
[1753888232462,0.0654,118580.0,118570.0,0.17709735]
[1753888232688,0.18314,118580.0,118570.0,0.48326379]
[1753888232940,0.18314,118580.0,118570.0,0.39878649]
[1753888232941,0.1861,118580.0,118570.0,0.39878649]
[1753888233163,0.5261,118580.0,118570.0,0.03960909]
[1753888233387,0.0636,118570.0,118550.0,0.13860412]
[1753888233633,0.55416443,118580.0,118550.0,0.00448412]
[1753888233634,0.13646275,118560.0,118550.0,0.00448412]
[1753888233875,0.25216275,118560.0,118550.0,0.00448412]
[1753888234115,0.25216275,118560.0,118550.0,0.36366152]
[1753888235702,0.1843,118560.0,118550.0,0.36366152]
[1753888235922,0.1843,118560.0,118550.0,0.41719948]
[1753888236393,0.5243,118560.0,118550.0,0.05802208]
[1753888236577,0.5243,118560.0,118550.0,0.06102208]
[1753888237242,0.5243,118560.0,118550.0,0.05802208]
[1753888237703,0.5243,118560.0,118550.0,0.05902208]
[1753888238358,0.5243,118560.0,118550.0,0.06113089]
[1753888240118,0.5243,118560.0,118550.0,0.05902208]
[1753888240572,0.5243,118560.0,118550.0,0.06113089]
[1753888240870,0.65842,118560.0,118550.0,0.06113089]
[1753888241122,0.65842,118560.0,118550.0,0.05713089]
[1753888242557,0.65546,118560.0,118550.0,0.40999007]
[1753888242754,0.65646,118560.0,118550.0,0.40988126]
[1753888243174,0.65942,118560.0,118550.0,0.40988126]
[1753888243613,0.65942,118560.0,118550.0,0.40778126]
[1753888244036,0.65938,118560.0,118550.0,0.40778126]
[1753888245319,0.0646,118560.0,118550.0,0.83879644]
[1753888246215,0.001,118560.0,118550.0,1.29933776]
[1753888246450,0.001,118560.0,118550.0,1.32433776]
[1753888247529,0.32416713,118580.0,118560.0,0.17711178]
[1753888247761,0.32620713,118580.0,118570.0,0.52364436]
[1753888248009,0.19212713,118580.0,118570.0,0.65561591]
[1753888248234,0.19212713,118580.0,118570.0,0.48693918]
[1753888249377,0.07438713,118580.0,118570.0,0.61306918]
[1753888250022,0.07438713,118580.0,118570.0,0.77858591]
[1753888250264,0.07438713,118580.0,118570.0,0.83528387]
[1753888250479,0.0654,118580.0,118570.0,0.928195]
[1753888250691,0.31708,118590.0,118570.0,0.93662876]
[1753888250906,0.31708,118590.0,118580.0,0.52152996]
[1753888251136,0.0673,118590.0,118580.0,0.65608473]
[1753888251347,0.0673,118590.0,118580.0,0.70679412]
[1753888251570,0.0673,118590.0,118580.0,0.72366029]
[1753888251816,0.0673,118590.0,118580.0,0.67222724]
[1753888252051,0.0683,118590.0,118580.0,0.70679412]
[1753888252288,0.07739771,118590.0,118580.0,0.71522724]
[1753888252536,0.07739771,118590.0,118580.0,0.70679412]
[1753888252804,0.01209771,118590.0,118580.0,0.72366015]
[1753888253018,0.01209771,118590.0,118580.0,0.73209299]
[1753888253238,0.01209771,118590.0,118580.0,0.72066015]
[1753888253449,0.01209771,118590.0,118580.0,0.80513759]
[1753888253675,0.003,118590.0,118580.0,0.8135705]
[1753888253892,0.003,118590.0,118580.0,0.82200326]
[1753888254113,0.004,118590.0,118580.0,0.83343588]
[1753888254753,0.004,118590.0,118580.0,0.85000326]
[1753888254975,0.004,118590.0,118580.0,0.85843595]
[1753888255191,0.004,118590.0,118580.0,0.8165705]
[1753888255416,0.004,118590.0,118580.0,1.11210334]
[1753888255690,0.004,118590.0,118580.0,1.1205361]
[1753888255908,0.004,118590.0,118580.0,1.12053524]
[1753888256571,0.004,118590.0,118580.0,1.09553524]
[1753888256784,0.004,118590.0,118580.0,1.12053524]
[1753888258073,0.004,118590.0,118580.0,0.85843524]
[1753888258283,0.004,118590.0,118580.0,0.87588426]
[1753888258489,0.004,118590.0,118580.0,1.13798426]
[1753888258923,0.004,118590.0,118580.0,1.12906958]
[1753888259137,0.004,118590.0,118580.0,1.24558106]
[1753888259341,0.004,118590.0,118580.0,1.25401368]
[1753888259791,0.004,118590.0,118580.0,1.18601368]
[1753888260016,0.004,118590.0,118580.0,0.82730387]
[1753888260229,0.004,118590.0,118580.0,1.21101368]
[1753888260443,0.004,118590.0,118580.0,1.18601368]
[1753888260902,0.004,118590.0,118580.0,1.21101368]
[1753888261987,0.004,118590.0,118580.0,1.56972349]
[1753888262630,0.004,118590.0,118580.0,1.21101368]
[1753888263970,0.004,118590.0,118580.0,1.56972349]
[1753888264394,0.004,118590.0,118580.0,1.21101368]
[1753888265046,0.18497,118590.0,118580.0,0.90134955]
[1753888265256,0.18497,118590.0,118580.0,0.81687225]
[1753888265467,0.18497,118590.0,118580.0,0.84187225]
[1753888265680,0.18497,118590.0,118580.0,0.81687225]
[1753888266110,0.18497,118590.0,118580.0,0.003]
[1753888266329,0.18497,118590.0,118580.0,0.13692]
[1753888266993,0.18497,118590.0,118580.0,0.49262981]
[1753888267411,0.18497,118590.0,118560.0,0.2621]
[1753888267412,0.12477,118590.0,118560.0,0.2621]
[1753888267660,0.18944275,118590.0,118570.0,0.13602845]
[1753888267869,0.00319,118580.0,118570.0,0.20960383]
[1753888268083,0.18113,118580.0,118570.0,0.20960383]
[1753888268343,0.18113,118580.0,118570.0,0.07568383]
[1753888268344,0.18327,118580.0,118570.0,0.07568383]
[1753888268565,0.0625,118560.0,118550.0,0.00048412]
[1753888268990,0.0625,118560.0,118550.0,0.36130274]
[1753888268991,0.06464,118560.0,118550.0,0.36130274]
[1753888269200,0.18327,118560.0,118550.0,0.35919393]
[1753888269618,0.18008,118560.0,118550.0,0.52987911]
[1753888269823,0.0625,118560.0,118550.0,0.97306622]
[1753888270032,0.0625,118560.0,118550.0,1.09488622]
[1753888270251,0.0715591,118560.0,118550.0,1.09488622]
[1753888270466,0.0715591,118560.0,118550.0,0.08694142]
[1753888270682,0.0715591,118560.0,118550.0,0.61646522]
[1753888270683,0.1891391,118560.0,118550.0,0.61646522]
[1753888270943,0.0715591,118560.0,118550.0,0.72513267]
[1753888271151,0.0715591,118560.0,118550.0,0.73649785]
[1753888271331,0.0715591,118560.0,118550.0,0.72806267]
[1753888271475,0.0725591,118560.0,118550.0,0.56135749]
[1753888271685,0.1901391,118560.0,118550.0,0.43953749]
[1753888273114,0.1901391,118560.0,118550.0,0.60824267]
[1753888273498,0.1901391,118560.0,118550.0,0.43953749]
[1753888273909,0.1933291,118560.0,118550.0,0.43755749]
[1753888274421,0.1933291,118560.0,118550.0,0.57143749]
[1753888275621,0.1933291,118560.0,118550.0,0.43755749]
[1753888278568,0.1933291,118560.0,118550.0,0.08696142]
[1753888278770,0.1933291,118560.0,118550.0,0.355189]
[1753888278987,0.1933291,118560.0,118550.0,0.35506019]
[1753888279188,0.3272091,118560.0,118550.0,0.35506019]
[1753888279391,0.3272091,118560.0,118550.0,0.00446412]
[1753888279587,0.3272091,118560.0,118550.0,0.355189]
[1753888279854,0.0725591,118560.0,118550.0,1.07444208]
[1753888280003,0.0635,118560.0,118550.0,1.09131223]
[1753888280212,0.0635,118560.0,118550.0,1.16735456]
[1753888280387,0.0635,118560.0,118550.0,0.80832331]
[1753888280734,0.07244626,118560.0,118550.0,0.80832331]
[1753888281000,0.07144626,118560.0,118550.0,0.80632331]
[1753888281206,0.07244626,118560.0,118550.0,0.80832331]
[1753888281835,0.07244626,118560.0,118550.0,0.82519346]
[1753888282043,0.0635,118560.0,118550.0,0.81675849]
[1753888282272,0.0635,118560.0,118550.0,0.46616249]
[1753888282478,0.0635,118560.0,118550.0,0.80832331]
[1753888283553,0.07279017,118560.0,118550.0,0.81675856]
[1753888283772,0.0635,118560.0,118550.0,0.81032331]
[1753888284412,0.06564,118560.0,118550.0,0.16920206]
[1753888284628,0.52427,118560.0,118550.0,0.00448412]
[1753888285060,0.65811,118560.0,118550.0,0.00659293]
[1753888285493,0.65811,118560.0,118550.0,0.357189]
[1753888285711,0.0635,118560.0,118550.0,1.10820874]
[1753888285927,0.063459,118560.0,118550.0,1.20423129]
[1753888286187,0.063459,118560.0,118550.0,1.07893129]
[1753888286408,0.063459,118560.0,118550.0,0.85363522]
[1753888286645,0.063459,118560.0,118550.0,0.87050537]
[1753888286824,0.063459,118560.0,118550.0,0.8620704]
[1753888287052,0.063459,118560.0,118550.0,0.85363522]
[1753888287261,0.063459,118560.0,118550.0,0.8620704]
[1753888287511,0.001,118560.0,118550.0,0.84519997]
[1753888287714,0.0337,118560.0,118550.0,0.84519997]
[1753888287925,0.0337,118560.0,118550.0,0.08896142]
[1753888287926,0.15395,118560.0,118550.0,0.08896142]
[1753888288132,0.15395,118560.0,118550.0,0.35508019]
[1753888288320,0.15395,118560.0,118550.0,0.00448412]
[1753888288527,0.15395,118560.0,118550.0,0.00659293]
[1753888288843,0.18685,118560.0,118550.0,0.00659293]
[1753888290316,0.18585,118560.0,118550.0,0.00459293]
[1753888290515,0.18585,118560.0,118550.0,0.355189]
[1753888290691,0.34914293,118570.0,118550.0,0.73103477]
[1753888290692,0.07324293,118570.0,118550.0,0.73103477]
[1753888290899,0.52840293,118570.0,118560.0,0.48439607]
[1753888291104,0.53052293,118570.0,118560.0,0.48655607]
[1753888291331,0.53052293,118570.0,118560.0,0.1338]
[1753888291539,0.0642,118560.0,118550.0,0.51834689]
[1753888291741,0.18138,118560.0,118550.0,0.65430689]
[1753888291937,0.18138,118560.0,118550.0,0.65630689]
[1753888292149,0.18445,118560.0,118550.0,0.65214689]
[1753888292614,0.18445,118560.0,118550.0,0.43386959]
[1753888292878,0.18445,118560.0,118550.0,0.56766959]
[1753888293103,0.18138,118560.0,118550.0,0.73853477]
[1753888293344,0.06632,118560.0,118550.0,0.73853477]
[1753888293570,0.06632,118560.0,118550.0,0.21923352]
[1753888293804,0.06632,118560.0,118550.0,0.56982959]
[1753888293951,0.18138,118560.0,118550.0,0.56982959]
[1753888294592,0.0642,118560.0,118550.0,0.97331207]
[1753888294778,0.0642,118560.0,118550.0,0.99018229]
[1753888295083,0.0642,118560.0,118550.0,1.00805216]
[1753888295281,0.0642,118560.0,118550.0,0.99961726]
[1753888295505,0.0642,118560.0,118550.0,0.99861726]
[1753888295733,0.0642,118560.0,118550.0,1.00705202]
[1753888296008,0.00914293,118570.0,118560.0,0.16868042]
[1753888296009,0.0639,118570.0,118560.0,0.16868042]
[1753888296226,0.0639,118570.0,118560.0,0.76521342]
[1753888296435,0.0639,118570.0,118560.0,0.76310479]
[1753888297636,0.0639,118570.0,118560.0,0.76410479]
[1753888298054,0.07266503,118570.0,118560.0,0.76310479]
[1753888298541,0.0639,118570.0,118560.0,0.77353933]
[1753888298718,0.0639,118570.0,118560.0,0.79040806]
[1753888298924,0.0639,118570.0,118560.0,0.79040813]
[1753888299339,0.0639,118570.0,118560.0,0.77353933]
[1753888299554,0.0639,118570.0,118560.0,0.78197373]
[1753888299758,0.0639,118570.0,118560.0,0.77353933]
[1753888299973,0.0639,118570.0,118560.0,0.72210479]
[1753888300194,0.0639,118570.0,118560.0,0.73053933]
[1753888300402,0.0639,118570.0,118560.0,0.74740806]
[1753888300810,0.0639,118570.0,118560.0,0.7389738]
[1753888301034,0.0639,118570.0,118560.0,0.72210479]
[1753888301301,0.07278791,118570.0,118560.0,0.73053926]
[1753888301524,0.07278791,118570.0,118560.0,0.74740792]
[1753888301766,0.0639,118570.0,118560.0,0.74740792]
[1753888302413,0.0303,118580.0,118570.0,0.17711042]
[1753888302631,0.0662,118590.0,118580.0,0.17709555]
[1753888302842,0.003,118590.0,118580.0,0.78149438]
[1753888303062,0.0331,118590.0,118580.0,0.78149445]
[1753888303273,0.04195383,118590.0,118580.0,0.78992707]
[1753888304141,0.07717383,118590.0,118580.0,0.46007337]
[1753888304356,0.19530383,118590.0,118580.0,0.165611]
[1753888305000,0.19630383,118590.0,118580.0,0.165611]
[1753888305419,0.19630383,118590.0,118580.0,0.165571]
[1753888305660,0.19630383,118590.0,118580.0,0.13368]
[1753888305866,0.19630383,118590.0,118580.0,0.13578828]
[1753888306079,0.19630383,118590.0,118580.0,0.13368]
[1753888306975,0.19630383,118590.0,118580.0,0.13578828]
[1753888307410,0.19630383,118590.0,118580.0,0.48638435]
[1753888307617,0.19323383,118590.0,118580.0,0.72310462]
[1753888307818,0.18438,118590.0,118580.0,0.68010462]
[1753888308034,0.004,118590.0,118580.0,0.91518043]
[1753888308250,0.004,118590.0,118580.0,0.94018043]
[1753888308462,0.004,118590.0,118580.0,1.20228043]
[1753888309135,0.004,118590.0,118580.0,1.22728043]
[1753888309783,0.004,118590.0,118580.0,1.22828043]
[1753888309999,0.004,118590.0,118580.0,1.27069568]
[1753888310445,0.003,118590.0,118580.0,1.96129175]
[1753888311273,0.003,118590.0,118580.0,1.61069568]
[1753888311687,0.003,118590.0,118580.0,1.96129175]
[1753888311886,0.003,118590.0,118580.0,1.61269568]
[1753888314000,0.003,118590.0,118580.0,1.61169568]
[1753888314421,0.003,118590.0,118580.0,1.61369568]
[1753888314641,0.003,118590.0,118580.0,1.52301568]
[1753888314864,0.003,118590.0,118580.0,1.63916666]
[1753888315075,0.003,118590.0,118580.0,1.28857059]
[1753888315297,0.003,118590.0,118580.0,1.63916666]
[1753888315739,0.003,118590.0,118580.0,1.65661568]
[1753888316893,0.003,118590.0,118580.0,2.00721175]
[1753888317117,0.003,118590.0,118580.0,2.03221175]
[1753888317811,0.003,118590.0,118580.0,1.68161568]
[1753888318268,0.003,118590.0,118580.0,1.33097961]
[1753888318492,0.003,118590.0,118580.0,1.65657568]
[1753888318936,0.003,118590.0,118580.0,1.63157568]
[1753888319197,0.003,118590.0,118580.0,1.52301568]
[1753888319398,0.003,118590.0,118580.0,0.79823059]
[1753888319399,0.18424,118590.0,118580.0,0.79823059]
[1753888319619,0.18722,118590.0,118580.0,0.41858335]
[1753888319840,0.18722,118590.0,118580.0,0.39966]
[1753888320062,0.18722,118590.0,118580.0,0.13756]
[1753888320063,0.18512,118590.0,118580.0,0.13756]
[1753888320287,0.18512,118590.0,118580.0,0.13556]
[1753888320517,0.19894223,118590.0,118580.0,0.13556]
[1753888320733,0.0634,118580.0,118570.0,0.13356]
[1753888320954,0.24998275,118580.0,118570.0,0.146916]
[1753888321387,0.24998275,118580.0,118570.0,0.013356]
[1753888321633,0.0638,118570.0,118550.0,0.00048412]
[1753888321857,0.0638,118560.0,118550.0,0.08496142]
[1753888322080,0.18252,118560.0,118550.0,0.00048412]
[1753888322531,0.18252,118560.0,118550.0,0.00259293]
[1753888322748,0.17954,118560.0,118550.0,0.4376663]
[1753888322975,0.18252,118560.0,118550.0,0.52003479]
[1753888323199,0.17954,118560.0,118550.0,0.52003479]
[1753888324074,0.18252,118560.0,118550.0,0.16943872]
[1753888324292,0.18252,118560.0,118550.0,0.17154753]
[1753888324502,0.18252,118560.0,118550.0,0.16943872]
[1753888324723,0.18452,118560.0,118550.0,0.16943872]
[1753888324968,0.18452,118560.0,118550.0,0.17154753]
[1753888325451,0.18452,118560.0,118550.0,0.34868796]
[1753888325658,0.0678,118560.0,118550.0,0.69717522]
[1753888325874,0.18354,118560.0,118550.0,0.7056104]
[1753888326088,0.18354,118560.0,118550.0,0.71404544]
[1753888326307,0.18354,118560.0,118550.0,0.69717522]
[1753888326531,0.18354,118560.0,118550.0,0.7056104]
[1753888326769,0.18354,118560.0,118550.0,0.70561033]
[1753888326979,0.18354,118560.0,118550.0,0.7056104]
[1753888327582,0.18354,118560.0,118550.0,0.71404544]